fUST/lending_fUST_20250210
["ID","MTS","AMOUNT","RATE_DAILY","PERIOD"]
[352498212,1739137897174,-1000.0,0.00013745,2]
[352498213,1739137897184,-1000.0,0.0001375,2]
[352498214,1739137897194,-224.28772442,0.00013753,2]
[352498215,1739137897204,-592.68236083,0.00013756,2]
[352498216,1739137897215,-1000.0,0.00013761,2]
[352498217,1739137897225,-1000.0,0.00013761,2]
[352498218,1739137897236,-1483.12351443,0.00013767,2]
[352498219,1739137897246,-212.59072856,0.0001377,2]
[352498220,1739137897255,-1000.0,0.00013778,2]
[352498221,1739137897265,-152.0,0.00013792,2]
[352498222,1739137897276,-152.0,0.00013792,2]
[352498223,1739137897285,-152.0,0.00013792,2]
[352498224,1739137897298,-152.0,0.00013792,2]
[352498225,1739137897307,-152.0,0.00013792,2]
[352498226,1739137897317,-152.0,0.00013792,2]
[352498227,1739137897327,-152.0,0.00013792,2]
[352498228,1739137897336,-152.0,0.00013792,2]
[352498229,1739137897346,-152.0,0.00013792,2]
[352498230,1739137897356,-152.0,0.00013792,2]
[352498231,1739137897365,-158.82,0.00013792,2]
[352498232,1739137897375,-166.0,0.00013792,2]
[352498233,1739137897385,-166.0,0.00013792,2]
[352498234,1739137897394,-168.22,0.00013792,2]
[352498235,1739137897403,-152.0,0.00013792,2]
[352498236,1739137897413,-152.0,0.00013792,2]
[352498237,1739137897423,-152.0,0.00013792,2]
[352498238,1739137897432,-152.0,0.00013792,2]
[352498239,1739137897442,-152.0,0.00013792,2]
[352498240,1739137897451,-152.0,0.00013792,2]
[352498241,1739137897460,-152.0,0.00013792,2]
[352498242,1739137897470,-152.0,0.00013792,2]
[352498243,1739137897479,-152.0,0.00013792,2]
[352498244,1739137897489,-152.0,0.00013792,2]
[352498245,1739137897498,-152.0,0.00013792,2]
[352498246,1739137897508,-152.0,0.00013792,2]
[352498247,1739137897518,-152.0,0.00013792,2]
[352498248,1739137897527,-152.0,0.00013792,2]
[352498249,1739137897537,-152.0,0.00013792,2]
[352498250,1739137897549,-152.0,0.00013792,2]
[352498251,1739137897559,-152.0,0.00013792,2]
[352498252,1739137897568,-152.0,0.00013792,2]
[352498253,1739137897578,-152.0,0.00013792,2]
[352498254,1739137897588,-152.0,0.00013792,2]
[352498255,1739137897598,-2000.0,0.000138,2]
[352498256,1739137897608,-160.0,0.00013801,11]
[352498257,1739137897618,-172.42684699,0.00013801,5]
[352498258,1739137897627,-1006.0,0.00013805,2]
[352498259,1739137897637,-1000.0,0.00013812,2]
[352498260,1739137897647,-1000.0,0.00013813,2]
[352498261,1739137897657,-1000.0,0.00013823,2]
[352498262,1739137897667,-1000.0,0.00013831,2]
[352498263,1739137897675,-99374.63426291,0.00013835,5]
[352498264,1739137897685,-511.53,0.00013835,2]
[352498265,1739137897695,-202.22449788,0.00013835,2]
[352498266,1739137897817,-738.43,0.00013835,2]
[352498267,1739137897828,-517.69,0.00013835,2]
[352498268,1739137897837,-503.93,0.00013835,2]
[352498269,1739137897847,-1103.48,0.00013835,2]
[352498270,1739137897856,-724.02,0.00013835,2]
[352498271,1739137897866,-824.2,0.00013835,2]
[352498272,1739137897875,-824.85,0.00013835,2]
[352498273,1739137897885,-633.47,0.00013835,2]
[352498274,1739137897894,-660.79,0.00013835,2]
[352498275,1739137897904,-500.0,0.00013835,2]
[352498276,1739137897913,-1548.94,0.00013835,2]
[352498277,1739137897923,-1271.62,0.00013835,2]
[352498278,1739137897934,-1526.67,0.00013835,2]
[352498279,1739137897943,-1037.54,0.00013835,2]
[352498280,1739137897952,-1491.1,0.00013835,2]
[352498281,1739137897962,-500.0,0.00013835,2]
[352498282,1739137897972,-774.85,0.00013835,2]
[352498283,1739137897982,-1332.36,0.00013835,2]
[352498284,1739137897991,-784.54,0.00013835,2]
[352498285,1739137898001,-884.06,0.00013835,2]
[352498286,1739137898010,-1472.41,0.00013835,2]
[352498287,1739137898020,-770.2,0.00013835,2]
[352498288,1739137898030,-500.0,0.00013835,2]
[352498289,1739137898040,-788.28,0.00013835,2]
[352498290,1739137898049,-567.03,0.00013835,2]
[352498291,1739137898058,-596.87,0.00013835,2]
[352498292,1739137898068,-571.69925632,0.00013835,2]
[352498293,1739137898079,-1144.56,0.00013835,2]
[352498294,1739137898088,-528.07,0.00013835,2]
[352498295,1739137898097,-1316.1,0.00013835,2]
[352498296,1739137898112,-533.35,0.00013835,2]
[352498297,1739137898121,-1927.7,0.00013835,2]
[352498298,1739137898131,-7284.82,0.00013835,2]
[352498299,1739137898140,-847.12,0.00013835,2]
[352498300,1739137898153,-954.01,0.00013835,2]
[352498301,1739137898162,-2180.19,0.00013835,2]
[352498302,1739137898172,-842.26,0.00013835,2]
[352498303,1739137898182,-883.86,0.00013835,2]
[352498304,1739137898192,-500.0,0.00013835,2]
[352498305,1739137898202,-500.0,0.00013835,2]
[352498306,1739137898211,-43935.02,0.00013835,2]
[352498307,1739137898222,-2712.8,0.00013835,2]
[352498308,1739137898231,-860.57,0.00013835,2]
[352498309,1739137898240,-2341.03,0.00013835,2]
[352498310,1739137898249,-3861.99,0.00013835,2]
[352498311,1739137898259,-1171.53,0.00013835,2]
[352498312,1739137898268,-883.39,0.00013835,2]
[352498313,1739137898278,-3532.66,0.00013835,2]
[352498314,1739137898287,-500.0,0.00013835,2]
[352498315,1739137898299,-895.17,0.00013835,2]
[352498316,1739137898308,-4555.54,0.00013835,2]
[352498317,1739137898318,-1716.4,0.00013835,2]
[352498318,1739137898327,-526.4599109,0.00013835,2]
[352498319,1739137898337,-22724.31,0.00013835,2]
[352498320,1739137898346,-584.12,0.00013835,2]
[352498321,1739137898355,-2591.58,0.00013835,2]
[352498322,1739137898364,-512.6,0.00013835,2]
[352498323,1739137898374,-1831.71,0.00013835,2]
[352498324,1739137898384,-1387.72,0.00013835,2]
[352498325,1739137898393,-4876.14,0.00013835,2]
[352498326,1739137898403,-542.0378468,0.00013835,2]
[352498327,1739137898412,-1527.52,0.00013835,2]
[352498328,1739137898421,-1081.99,0.00013835,2]
[352498329,1739137898431,-224.28772442,0.00013836,2]
[352498330,1739137898441,-1000.0,0.00013839,2]
[352498331,1739137898451,-1000.0,0.00013852,2]
[352498332,1739137898460,-482.66689747,0.00013856,2]
[352498333,1739137898470,-1483.12351443,0.00013867,2]
[352498334,1739137898479,-1000.0,0.00013878,2]
[352498335,1739137898488,-994.0,0.00013881,2]
[352498336,1739137898498,-1000.0,0.00013882,2]
[352498337,1739137898507,-224.28772442,0.0001389,2]
[352498338,1739137898517,-40646.0,0.000139,3]
[352498339,1739137898527,-1000.0,0.00013908,2]
[352498340,1739137898536,-1000.0,0.00013927,2]
[352498341,1739137898548,-6840.0,0.0001394,5]
[352498342,1739137898558,-1000.0,0.00013949,2]
[352498343,1739137898567,-1000.0,0.00013954,2]
[352498344,1739137898576,-1000.0,0.0001396,2]
[352498345,1739137898586,-994.0,0.00013963,2]
[352498346,1739137898595,-1483.12351443,0.00013967,2]
[352498347,1739137898605,-1006.0,0.00013971,2]
[352498348,1739137898615,-511.53,0.00013972,2]
[352498349,1739137898624,-738.43,0.00013972,2]
[352498350,1739137898635,-517.69,0.00013972,2]
[352498351,1739137898644,-503.93,0.00013972,2]
[352498352,1739137898653,-1103.48,0.00013972,2]
[352498353,1739137898663,-724.02,0.00013972,2]
[352498354,1739137898672,-824.2,0.00013972,2]
[352498355,1739137898682,-824.85,0.00013972,2]
[352498356,1739137898691,-633.47,0.00013972,2]
[352498357,1739137898701,-660.79,0.00013972,2]
[352498358,1739137898711,-500.0,0.00013972,2]
[352498359,1739137898720,-1548.94,0.00013972,2]
[352498360,1739137898730,-1271.62,0.00013972,2]
[352498361,1739137898739,-1526.67,0.00013972,2]
[352498362,1739137898749,-1037.54,0.00013972,2]
[352498363,1739137898758,-1491.1,0.00013972,2]
[352498364,1739137898768,-500.0,0.00013972,2]
[352498365,1739137898778,-774.85,0.00013972,2]
[352498366,1739137898787,-1332.36,0.00013972,2]
[352498367,1739137898799,-784.54,0.00013972,2]
[352498368,1739137898809,-884.06,0.00013972,2]
[352498369,1739137898819,-1472.41,0.00013972,2]
[352498370,1739137898828,-770.2,0.00013972,2]
[352498371,1739137898838,-500.0,0.00013972,2]
[352498372,1739137898847,-788.28,0.00013972,2]
[352498373,1739137898857,-567.03,0.00013972,2]
[352498374,1739137898866,-596.87,0.00013972,2]
[352498375,1739137898876,-1144.56,0.00013972,2]
[352498376,1739137898885,-528.07,0.00013972,2]
[352498377,1739137898895,-1316.1,0.00013972,2]
[352498378,1739137898904,-533.35,0.00013972,2]
[352498379,1739137898913,-1927.7,0.00013972,2]
[352498380,1739137898923,-7284.82,0.00013972,2]
[352498381,1739137898933,-847.12,0.00013972,2]
[352498382,1739137898942,-954.01,0.00013972,2]
[352498383,1739137898952,-2180.19,0.00013972,2]
[352498384,1739137898961,-842.26,0.00013972,2]
[352498385,1739137898971,-883.86,0.00013972,2]
[352498386,1739137898980,-250.77568155,0.00013972,2]
[352498387,1739137898990,-648.27,0.00013972,2]
[352498388,1739137898999,-43935.02,0.00013972,2]
[352498389,1739137899008,-2712.8,0.00013972,2]
[352498390,1739137899017,-860.57,0.00013972,2]
[352498391,1739137899027,-2341.03,0.00013972,2]
[352498392,1739137899036,-3861.99,0.00013972,2]
[352498393,1739137899051,-1171.53,0.00013972,2]
[352498394,1739137899060,-883.39,0.00013972,2]
[352498395,1739137899069,-3532.66,0.00013972,2]
[352498396,1739137899079,-322.21245798,0.00013972,2]
[352498397,1739137899088,-895.17,0.00013972,2]
[352498398,1739137899097,-4555.54,0.00013972,2]
[352498399,1739137899109,-1716.4,0.00013972,2]
[352498400,1739137899118,-22724.31,0.00013972,2]
[352498401,1739137899127,-584.12,0.00013972,2]
[352498402,1739137899138,-2591.58,0.00013972,2]
[352498403,1739137899150,-512.6,0.00013972,2]
[352498404,1739137899160,-1831.71,0.00013972,2]
[352498405,1739137899169,-1387.72,0.00013972,2]
[352498406,1739137899178,-4876.14,0.00013972,2]
[352498407,1739137899190,-1527.52,0.00013972,2]
[352498408,1739137899199,-1081.99,0.00013972,2]
[352498409,1739137899209,-1000.0,0.00013974,2]
[352498410,1739137899220,-1000.0,0.00013975,2]
[352498411,1739137899230,-1290333.182337,0.00013988,2]
[352498412,1739137899239,-406.13864036,0.0001399,2]
[352498413,1739137899249,-9073.15188362,0.0001399,2]
[352498414,1739137899258,-9073.15188362,0.00013997,2]
[352498415,1739137899268,-160.0,0.00013999,2]
[352498416,1739137899277,-160.0,0.00013999,2]
[352498417,1739137899286,-160.0,0.00013999,2]
[352498418,1739137899299,-160.0,0.00013999,2]
[352498419,1739137899308,-160.0,0.00013999,2]
[352498420,1739137899318,-160.0,0.00013999,2]
[352498421,1739137899327,-9073.15188362,0.00013999,2]
[352498422,1739137899336,-371.57718596,0.00014,2]
[352498423,1739137899345,-1515.26020098,0.00014,2]
[352498424,1739137899354,-7130.0,0.00014,2]
[352498425,1739137899363,-7666.0,0.00014,2]
[352498426,1739137899372,-803175.48898844,0.00014,2]
[352498427,1739137899381,-100000.0,0.00014,2]
[352498428,1739137899391,-1900000.0,0.00014,2]
[352498429,1739137899400,-3895.48,0.00014,2]
[352498430,1739137899410,-612.0,0.00014,4]
[352498431,1739137899420,-1000.0,0.00014,2]
[352498432,1739137899430,-1315.50357555,0.00014,2]
[352498433,1739137899439,-2489.6521,0.00014,2]
[352498434,1739137899449,-2489.6521,0.00014,2]
[352498435,1739137899459,-658.99,0.00014,2]
[352498436,1739137899469,-3283.93690365,0.00014,2]
[352498437,1739137899478,-310000.0,0.00014,2]
[352498438,1739137899488,-25641.11366319,0.00014,2]
[352498439,1739137899594,-514.45,0.000137,2]
[352498440,1739137899603,-18867.75129262,0.00014,2]
[352498441,1739137899615,-321.66502649,0.00014,2]
[352498442,1739137899682,-1600.223697,0.00014,2]
[352498443,1739137899693,-840.21759612,0.00014,2]
[352498444,1739137899704,-38373.04018541,0.00014,2]
[352498445,1739137899866,-3801.79999986,0.00010848,2]
[352498446,1739137899878,-918.07238828,0.00010848,2]
[352498447,1739137899887,-346.92761171,0.00010872,2]
[352498448,1739137899898,-46.07238829,0.00010872,2]
[352498449,1739137899907,-1652.4582326,0.000137,2]
[352498450,1739137899916,-514.45,0.000137,2]
[352498451,1739137899925,-328.01937917,0.000137,2]
[352498452,1739137899936,-186.43062083,0.000137,2]
[352498453,1739137899945,-1652.4582326,0.000137,2]
[352498454,1739137899954,-72.71114657,0.000137,2]
[352498455,1739137899965,-441.73885343,0.000137,2]
[352498456,1739137899975,-1652.4582326,0.000137,2]
[352498457,1739137899986,-514.45,0.000137,2]
[352498458,1739137899995,-514.45,0.000137,2]
[352498459,1739137900006,-1652.4582326,0.000137,2]
[352498460,1739137900015,-514.45,0.000137,2]
[352498461,1739137900025,-1652.4582326,0.000137,2]
[352498462,1739137900034,-514.45,0.000137,2]
[352498463,1739137900048,-1652.45,0.000137,2]
[352498464,1739137900057,-514.45,0.000137,2]
[352498465,1739137900067,-514.45,0.000137,2]
[352498466,1739137900076,-514.45,0.000137,2]
[352498467,1739137900086,-514.45,0.000137,2]
[352498468,1739137900097,-482.83634077,0.000137,2]
[352498469,1739137900111,-31.61365923,0.000137,2]
[352498470,1739137900121,-393.0,0.00013872,2]
[352498471,1739137900132,-3804.63372686,0.00014,2]
[352498472,1739137900175,-2341.797197,0.00014,2]
[352498473,1739137900217,-1009.5,0.00014,2]
[352498474,1739137904613,-42681.6098759,0.00014,2]
[352498475,1739137904625,-323.56061344,0.00014,2]
[352498476,1739137904636,-691.42540731,0.00014,2]
[352498477,1739137904654,-283.54521413,0.00010956,2]
[352498478,1739137904663,-38713.69208991,0.00014,2]
[352498479,1739137904674,-62667.42672538,0.00014,2]
[352498480,1739137905917,-15014.614581,0.00014,2]
[352498524,1739138236518,24631.35261677,0.00014,60]
[352498573,1739139037562,-480.22330381,9.695e-05,2]
[352498577,1739139037591,-130.68632909,9.695e-05,2]
[352498579,1739139037600,-953.23350583,9.758e-05,2]
[352498582,1739139037616,-2303.45629011,9.758e-05,2]
[352498593,1739139037715,-394.44286205,9.758e-05,2]
[352498732,1739139039120,-5577.41226731,9.758e-05,2]
[352498734,1739139039130,-320.188733,9.94e-05,2]
[352498736,1739139039139,-800.0,0.00010068,2]
[352498738,1739139039148,-400.0,0.00010685,2]
[352498740,1739139039158,-300.0,0.00010957,2]
[352498742,1739139039167,-633.50655757,0.00010958,2]
[352498744,1739139039176,-500.0,0.00010958,2]
[352498746,1739139039186,-500.0,0.00010958,2]
[352498747,1739139039195,-328.75384703,0.00010958,2]
[352498749,1739139039204,-500.0,0.00010958,2]
[352498752,1739139039213,-500.0,0.00010958,2]
[352498754,1739139039222,-500.0,0.00010958,2]
[352498755,1739139039231,-500.0,0.00010958,2]
[352498758,1739139039241,-500.0,0.00010958,2]
[352498759,1739139039251,-500.0,0.00010958,2]
[352498762,1739139039260,-303.67374522,0.00010958,2]
[352498763,1739139039270,-500.0,0.00010958,2]
[352498765,1739139039279,-500.0,0.00010958,2]
[352498767,1739139039289,-500.0,0.00010958,2]
[352498769,1739139039298,-500.0,0.00010958,2]
[352498771,1739139039308,-1090.35,0.00010958,2]
[352498773,1739139039317,-500.0,0.00010958,2]
[352498777,1739139039326,-500.0,0.00010958,2]
[352498780,1739139039335,-500.0,0.00010958,2]
[352498782,1739139039344,-500.0,0.00010958,2]
[352498784,1739139039353,-500.0,0.00010958,2]
[352498786,1739139039362,-500.0,0.00010958,2]
[352498788,1739139039371,-500.0,0.00010958,2]
[352498790,1739139039381,-500.0,0.00010958,2]
[352498792,1739139039391,-500.0,0.00010958,2]
[352498794,1739139039400,-500.0,0.00010958,2]
[352498796,1739139039409,-504.0,0.00010958,2]
[352498798,1739139039419,-500.0,0.00010958,2]
[352498800,1739139039428,-500.0,0.00010958,2]
[352498802,1739139039437,-500.0,0.00010958,2]
[352498804,1739139039446,-500.0,0.00010958,2]
[352498806,1739139039456,-500.0,0.00010958,2]
[352498807,1739139039470,-490.54,0.00010958,2]
[352498809,1739139039479,-500.0,0.00010958,2]
[352498811,1739139039488,-500.0,0.00010958,2]
[352498813,1739139039497,-500.0,0.00010958,2]
[352498815,1739139039507,-500.0,0.00010958,2]
[352498817,1739139039516,-500.0,0.00010958,2]
[352498819,1739139039525,-500.0,0.00010958,2]
[352498821,1739139039536,-500.0,0.00010958,2]
[352498823,1739139039546,-500.0,0.00010958,2]
[352498825,1739139039555,-500.0,0.00010958,2]
[352498827,1739139039564,-567.05549012,0.00010958,2]
[352498829,1739139039575,-597.10565557,0.00010958,2]
[352498831,1739139039584,-500.0,0.00010958,2]
[352498833,1739139039593,-500.0,0.00010958,2]
[352498835,1739139039603,-500.0,0.00010958,2]
[352498837,1739139039612,-500.0,0.00010958,2]
[352498839,1739139039621,-1776.74,0.00010958,2]
[352498841,1739139039632,-500.0,0.00010958,2]
[352498843,1739139039642,-500.0,0.00010958,2]
[352498845,1739139039651,-505.7,0.00010958,2]
[352498847,1739139039661,-511.74476715,0.00010958,2]
[352498849,1739139039671,-500.0,0.00010958,2]
[352498851,1739139039680,-500.0,0.00010958,2]
[352498853,1739139039689,-533.56,0.00010958,2]
[352498855,1739139039699,-500.0,0.00010958,2]
[352498857,1739139039709,-500.0,0.00010958,2]
[352498859,1739139039720,-500.0,0.00010958,2]
[352498861,1739139039730,-500.0,0.00010958,2]
[352498863,1739139039739,-500.0,0.00010958,2]
[352498865,1739139039751,-500.0,0.00010958,2]
[352498867,1739139039762,-500.0,0.00010958,2]
[352498869,1739139039772,-500.0,0.00010958,2]
[352498871,1739139039782,-500.0,0.00010958,2]
[352498872,1739139039792,-500.0,0.00010958,2]
[352498874,1739139039803,-500.0,0.00010958,2]
[352498876,1739139039813,-500.0,0.00010958,2]
[352498878,1739139039823,-2535.49,0.00010958,2]
[352498880,1739139039833,-500.0,0.00010958,2]
[352498882,1739139039843,-500.0,0.00010958,2]
[352498884,1739139039852,-500.0,0.00010958,2]
[352498886,1739139039862,-500.0,0.00010958,2]
[352498888,1739139039872,-500.0,0.00010958,2]
[352498890,1739139039881,-500.0,0.00010958,2]
[352498892,1739139039890,-520.28,0.00010958,2]
[352498894,1739139039900,-500.0,0.00010958,2]
[352498896,1739139039909,-500.0,0.00010958,2]
[352498898,1739139039919,-500.0,0.00010958,2]
[352498899,1739139039928,-500.0,0.00010958,2]
[352498900,1739139039937,-500.0,0.00010958,2]
[352498901,1739139039946,-1288.92,0.00010958,2]
[352498902,1739139039955,-500.0,0.00010958,2]
[352498903,1739139039964,-1011.88,0.00010958,2]
[352498904,1739139039974,-500.0,0.00010958,2]
[352498905,1739139039983,-504.2045015,0.00010958,2]
[352498906,1739139039992,-592.48,0.00010958,2]
[352498907,1739139040004,-428.63,0.00010958,2]
[352498908,1739139040014,-500.0,0.00010958,2]
[352498909,1739139040024,-500.0,0.00010958,2]
[352498910,1739139040033,-500.0,0.00010958,2]
[352498911,1739139040042,-11049.1,0.00010958,2]
[352498912,1739139040052,-500.0,0.00010958,2]
[352498913,1739139040062,-528.24078858,0.00010958,2]
[352498914,1739139040071,-500.0,0.00010958,2]
[352498915,1739139040081,-3548.82,0.00010958,2]
[352498917,1739139040091,-500.0,0.00010958,2]
[352498919,1739139040100,-500.0,0.00010958,2]
[352498921,1739139040109,-500.0,0.00010958,2]
[352498923,1739139040119,-500.0,0.00010958,2]
[352498925,1739139040128,-502.18688608,0.00010958,2]
[352498927,1739139040139,-8232.14,0.00010958,2]
[352498929,1739139040149,-3391.52,0.00010958,2]
[352498931,1739139040158,-500.0,0.00010958,2]
[352498933,1739139040168,-500.0,0.00010958,2]
[352498935,1739139040178,-1749.51,0.00010958,2]
[352498937,1739139040187,-501.50872865,0.00010958,2]
[352498939,1739139040197,-1830.63,0.00010958,2]
[352498941,1739139040206,-500.0,0.00010958,2]
[352498943,1739139040216,-500.0,0.00010958,2]
[352498945,1739139040225,-584.25411782,0.00010958,2]
[352498947,1739139040235,-500.0,0.00010958,2]
[352498949,1739139040244,-3346.8,0.00010958,2]
[352498951,1739139040255,-500.0,0.00010958,2]
[352498954,1739139040265,-500.0,0.00010958,2]
[352498957,1739139040275,-504.03,0.00010958,2]
[352498960,1739139040284,-500.0,0.00010958,2]
[352498963,1739139040294,-500.0,0.00010958,2]
[352498966,1739139040303,-500.0,0.00010958,2]
[352498969,1739139040313,-500.0,0.00010958,2]
[352498971,1739139040323,-500.0,0.00010958,2]
[352498974,1739139040332,-500.0,0.00010958,2]
[352498976,1739139040342,-517.88690664,0.00010958,2]
[352498978,1739139040352,-920.44,0.00010958,2]
[352498980,1739139040363,-500.0,0.00010958,2]
[352498982,1739139040372,-946.85,0.00010958,2]
[352498983,1739139040382,-500.0,0.00010958,2]
[352498985,1739139040392,-500.0,0.00010958,2]
[352498987,1739139040401,-500.0,0.00010958,2]
[352498988,1739139040411,-500.0,0.00010958,2]
[352498990,1739139040420,-500.0,0.00010958,2]
[352498993,1739139040430,-500.0,0.00010958,2]
[352498996,1739139040439,-500.0,0.00010958,2]
[352498998,1739139040449,-500.0,0.00010958,2]
[352499001,1739139040462,-500.0,0.00010958,2]
[352499004,1739139040471,-500.0,0.00010958,2]
[352499007,1739139040480,-500.0,0.00010958,2]
[352499009,1739139040490,-500.0,0.00010958,2]
[352499012,1739139040500,-500.0,0.00010958,2]
[352499015,1739139040510,-500.0,0.00010958,2]
[352499017,1739139040519,-500.0,0.00010958,2]
[352499020,1739139040528,-1102.24,0.00010958,2]
[352499023,1739139040539,-500.0,0.00010958,2]
[352499026,1739139040550,-500.0,0.00010958,2]
[352499028,1739139040560,-500.0,0.00010958,2]
[352499031,1739139040569,-500.0,0.00010958,2]
[352499034,1739139040578,-500.0,0.00010958,2]
[352499036,1739139040589,-512.76041723,0.00010958,2]
[352499039,1739139040598,-500.0,0.00010958,2]
[352499042,1739139040608,-719.09,0.00010959,2]
[352499045,1739139040618,-470.614,0.00011079,2]
[352499047,1739139040627,-284.61663002,0.00011095,2]
[352499050,1739139040637,-500.0,0.00011095,2]
[352499053,1739139040647,-500.0,0.00011095,2]
[352499056,1739139040656,-500.0,0.00011095,2]
[352499058,1739139040666,-500.0,0.00011095,2]
[352499061,1739139040676,-500.0,0.00011095,2]
[352499064,1739139040685,-500.0,0.00011095,2]
[352499067,1739139040694,-500.0,0.00011095,2]
[352499070,1739139040703,-500.0,0.00011095,2]
[352499072,1739139040713,-500.0,0.00011095,2]
[352499075,1739139040722,-500.0,0.00011095,2]
[352499078,1739139040732,-1090.35,0.00011095,2]
[352499080,1739139040741,-500.0,0.00011095,2]
[352499083,1739139040751,-500.0,0.00011095,2]
[352499086,1739139040761,-500.0,0.00011095,2]
[352499088,1739139040771,-500.0,0.00011095,2]
[352499091,1739139040780,-603.68437431,0.00011095,2]
[352499094,1739139040790,-324.85002623,0.00011095,2]
[352499097,1739139040800,-500.0,0.00011095,2]
[352499100,1739139040809,-509.06823452,0.00011095,2]
[352499103,1739139040820,-161.0,0.00011095,2]
[352499105,1739139040830,-500.0,0.00011095,2]
[352499108,1739139040840,-537.61291354,0.00011095,2]
[352499111,1739139040849,-600.49697037,0.00011095,2]
[352499114,1739139040859,-504.5698211,0.00011095,2]
[352499116,1739139040868,-500.0,0.00011095,2]
[352499119,1739139040878,-639.45646474,0.00011095,2]
[352499122,1739139040887,-486.12882218,0.00011095,2]
[352499125,1739139040897,-500.0,0.00011095,2]
[352499127,1739139040907,-500.0,0.00011095,2]
[352499130,1739139040917,-274.95,0.00011095,2]
[352499133,1739139040926,-500.0,0.00011095,2]
[352499135,1739139040936,-500.0,0.00011095,2]
[352499137,1739139040946,-384.24332956,0.00011095,2]
[352499139,1739139040955,-270.41,0.00011095,2]
[352499141,1739139040965,-288.34,0.00011095,2]
[352499143,1739139040973,-644.77975075,0.00011095,2]
[352499145,1739139040982,-500.0,0.00011095,2]
[352499147,1739139040993,-500.0,0.00011095,2]
[352499149,1739139041004,-500.0,0.00011095,2]
[352499151,1739139041014,-1776.74,0.00011095,2]
[352499153,1739139041023,-500.0,0.00011095,2]
[352499155,1739139041033,-500.0,0.00011095,2]
[352499157,1739139041042,-505.7,0.00011095,2]
[352499159,1739139041051,-500.0,0.00011095,2]
[352499161,1739139041061,-500.0,0.00011095,2]
[352499163,1739139041071,-500.0,0.00011095,2]
[352499164,1739139041080,-500.0,0.00011095,2]
[352499167,1739139041090,-500.0,0.00011095,2]
[352499168,1739139041099,-500.0,0.00011095,2]
[352499170,1739139041109,-500.0,0.00011095,2]
[352499173,1739139041119,-500.0,0.00011095,2]
[352499174,1739139041128,-500.0,0.00011095,2]
[352499176,1739139041137,-500.0,0.00011095,2]
[352499178,1739139041146,-500.0,0.00011095,2]
[352499181,1739139041156,-500.0,0.00011095,2]
[352499183,1739139041166,-500.0,0.00011095,2]
[352499185,1739139041175,-2535.49,0.00011095,2]
[352499187,1739139041185,-500.0,0.00011095,2]
[352499189,1739139041195,-500.0,0.00011095,2]
[352499191,1739139041204,-519.12640074,0.00011095,2]
[352499193,1739139041215,-500.0,0.00011095,2]
[352499195,1739139041224,-500.0,0.00011095,2]
[352499197,1739139041234,-500.0,0.00011095,2]
[352499199,1739139041243,-520.28,0.00011095,2]
[352499201,1739139041255,-500.0,0.00011095,2]
[352499203,1739139041264,-175.78013187,0.00011095,2]
[352499205,1739139041274,-500.0,0.00011095,2]
[352499207,1739139041283,-500.0,0.00011095,2]